Cogmind - Beta 15 @@@ ROGUE MODE // 2025.10.09 @ 17:03:24 Player: DietSnapple Result: Destroyed by Y-45 Defender with Beam Rifle Performance ------------- Evolutions (1) 500 Regions Visited (3) 600 Robots Destroyed (23) 115 Value Destroyed (536) 536 Prototype IDs (0) 0 Alien Tech Used (0) 0 Bonus (0) 0 TOTAL SCORE: 1751 Bonus ------- None Cogmind --------- Core Integrity 0/400 Matter 192/300 Energy 100/100 System Corruption 0% Temperature Cool (9) Movement Core (2350) Ox46 Location -9/Materials Parts ------- > --- POWER (1) -------- (None) > --- PROPULSION (2) --- (None) > --- UTILITY (3) ------ Cargo Storage Unit Weapon Shielding > --- WEAPON (3) ------- (None) > --- INVENTORY (30) --- Light Ion Engine Light Ion Engine Light Treads Compact Wheel Compact Wheel Compact Wheel Scrap Suit Improved Heat Sink Improved Heat Sink Improved Heat Sink Small Storage Unit Medium Matter Pod (100) Large Matter Pod (39) Peak State ------------ > --- POWER ------------ Light Ion Engine > --- PROPULSION ------- Wheel Wheel > --- UTILITY ---------- Cargo Storage Unit > --- WEAPON ----------- Grenade Launcher Rocket Launcher > --- INVENTORY -------- Light Ion Engine Light Ion Engine Light Treads Light Treads Wheel Compact Wheel Compact Wheel Compact Wheel Scrap Suit Improved Heat Sink Improved Heat Sink Improved Heat Sink Small Storage Unit Medium Matter Pod Large Matter Pod Weapon Shielding Beam Cannon Assault Rifle Light Assault Rifle [Rating: 11] Favorites ----------- Power Light Ion Engine Engine Light Ion Engine Propulsion Wheel Treads Light Treads Wheel Wheel Utility Cargo Storage Unit Device Seismic Detector Storage Cargo Storage Unit Protection Weapon Shielding Weapon Beam Cannon Energy Cannon Beam Cannon Ballistic Gun Light Assault Rifle Launcher Grenade Launcher Build | -11 -10 -10 -9 ------- Run | Yrd Mat Min Mat Slots Evolved 2 | . . . 2 Power . | . . . . Propulsion . | . . . . Utility 1 | . . . 1 Weapon 1 | . . . 1 Parts Attached 18 | 6 6 3 3 Power 2 | 1 1 . . Engine 2 | 1 1 . . Core . | . . . . Reactor . | . . . . Propulsion 5 | 2 . 2 1 Treads 1 | . . . 1 Leg . | . . . . Wheel 4 | 2 . 2 . Hover . | . . . . Flight . | . . . . Utility 5 | 1 3 . 1 Device 2 | . 2 . . Storage 2 | 1 1 . . Processor . | . . . . Hackware . | . . . . Protection 1 | . . . 1 Artifact . | . . . . Weapon 6 | 2 2 1 1 Energy Gun . | . . . . Energy Cannon 2 | . 2 . . Ballistic Gun 2 | 2 . . . Ballistic Cannon . | . . . . Launcher 2 | . . 1 1 Special Weapon . | . . . . Impact Weapon . | . . . . Slashing Weapon . | . . . . Piercing Weapon . | . . . . Special Melee Weapon . | . . . . Unidentified Prototypes . | . . . . Parts Lost 11 | . 1 2 8 Power 1 | . . . 1 Propulsion 4 | . . 1 3 Utility 1 | . 1 . . Weapon 5 | . . 1 4 Highest Loss Streak 8 | . 1 2 8 To Critical Strikes . | . . . . Average Backups 13 | 1 8 16 15 Power 1 | . 1 2 2 Propulsion 3 | . 3 4 4 Utility 4 | . 2 6 7 Weapon 2 | . 1 3 1 Tool/Special . | . . . . Unused Backups 11 | . . . 11 Power 2 | . . . 2 Propulsion 4 | . . . 4 Utility 5 | . . . 5 Weapon . | . . . . Tool/Special . | . . . . Average Slot Usage (%) 79 | . 89 80 42 Engine 12 | . 14 14 4 Wheel 26 | . 28 27 12 Device 1 | . 4 . . Storage 13 | . 13 14 11 Energy Cannon 14 | . 13 18 1 Ballistic Gun 5 | . 14 . 1 Launcher 2 | . . 4 4 Peak Build Rating 11 | 6 9 10 11 Average Rating 8 | 4 7 9 7 On Entrance 5 | . 6 8 9 Naked Turns . | . . . . Heaviest Build 150 | 13 149 149 150 Greatest Support 20 | 20 20 20 20 Greatest Overweight (x) 14 | . 7 14 13 Average Overweight (x) 3 | . 1 7 7 Largest Inventory Capacity 30 | 8 30 30 30 Average Capacity 24 | 7 17 30 30 Most Carried 21 | 3 15 19 21 Average Carried 13 | 1 8 17 16 Final Capacity 30 | 8 30 30 30 Final Carried 19 | 3 15 19 14 Class Distribution -------------------- 75% | Hauler-Mutant 24% | Mutant Dominant Class ---------------- Mutant | -10/Materials Hauler-Mutant | -10/Mines Hauler-Mutant | -9/Materials Resources | -11 -10 -10 -9 ----------- Run | Yrd Mat Min Mat Matter Collected 549 | 186 244 119 . Remotely . | . . . . Salvage Created 560 | . 273 214 73 Parts 43 | . 18 19 6 Haulers Intercepted . | . . . . Recyclers Shooed . | . . . . Parts Field Recycled . | . . . . Retrieved Matter . | . . . . Parts Self-Destructed . | . . . . Prevented . | . . . . Kills | -11 -10 -10 -9 ------- Run | Yrd Mat Min Mat Combat Hostiles Destroyed 17 | . 5 10 2 Guns 2 | . 2 . . Cannons 9 | . 3 5 1 AOE 6 | . . 5 1 Classes Destroyed 6 | . 3 1 2 Worker 3 | . 3 . . Builder 1 | . . . 1 Operator 1 | . 1 . . Watcher 1 | . . . 1 Swarmer 6 | . . 6 . Grunt 11 | . 5 4 2 Best Kill Streak 3 | . 2 3 3 Combat Bots Only 3 | . 2 3 1 Max Kills in Single Turn 3 | . 2 2 3 Gunslinging . | . . . . Exploded 2 | . . 2 1 Melee . | . . . . Uniques/NPCs Destroyed . | . . . . Combat | -11 -10 -10 -9 -------- Run | Yrd Mat Min Mat Hostile Shots Fired 158 | . 30 36 92 Missed 35 | . 4 5 26 Hits 123 | . 26 31 66 Melee 4 | . . . 4 Projectile 119 | . 26 31 62 Critical Strikes 7 | . . 2 5 Damage Taken 1767 | . 341 419 1007 Core 581 | . 75 94 412 Absorbed by Shields . | . . . . Redirected to Shielding 4 | . . . 4 Core Remaining (%) 66 | 100 . 32 . Volleys Fired 58 | . 28 17 13 Largest 2 | . 2 2 2 Hottest 120 | . 120 120 60 Shots Fired 98 | . 56 27 15 Gun 30 | . 24 . 6 Cannon 57 | . 32 21 4 Launcher 11 | . . 6 5 Special . | . . . . Kinetic 30 | . 24 . 6 Thermal 57 | . 32 21 4 Explosive 11 | . . 6 5 Electromagnetic . | . . . . Robot Hit Streak 9 | . 9 4 7 Robot Miss Streak 3 | . 3 3 1 Penetration Max . | . . . . Secondary Targets 1 | . 1 . . Max Gunslinging Chain 1 | . 1 . . Shots Hit Robots 61 | . 39 14 8 Core Hits 44 | . 15 15 14 Critical Kills . | . . . . Critical Parts Destroyed . | . . . . Critical Strikes . | . . . . Melee Attacks . | . . . . Impact . | . . . . Slashing . | . . . . Piercing . | . . . . Sneak Attacks . | . . . . Combat Hostiles . | . . . . Follow-up Attacks . | . . . . Damage Inflicted 1541 | . 581 419 541 Guns 218 | . 179 . 39 Cannons 648 | . 402 193 53 Explosions 659 | . . 226 433 Melee . | . . . . Ramming 16 | . . . 16 Kinetic 218 | . 179 . 39 Thermal 648 | . 402 193 53 Explosive 659 | . . 226 433 Electromagnetic . | . . . . Impact . | . . . . Slashing . | . . . . Piercing . | . . . . Highest Corruption . | . . . . Average Corruption . | . . . . Corruption Purged . | . . . . Corruption Blocked . | . . . . Overload Shots . | . . . . Overflow Damage 13 | . 13 . . Projectiles 13 | . 13 . . Explosions . | . . . . Melee . | . . . . Knockbacks . | . . . . Impact . | . . . . Kinetic . | . . . . Secondary . | . . . . Self-Inflicted Damage 80 | . . 80 . Shots 2 | . . 2 . Rammed 8 | . . . 8 Targets Rammed 8 | . . . 8 Kicked . | . . . . Crushed . | . . . . Highest Temperature 415 | . 415 222 30 Average Temperature 106 | . 129 93 8 Received Heat Transfer 879 | . 198 150 531 Effects 2 | . 2 . . Energy Bleed 2 | . 2 . . Siege Activations . | . . . . Martial Activations . | . . . . Shielding Activations . | . . . . Robots Disrupted . | . . . . Combat Hostiles . | . . . . Robots Corrupted . | . . . . Combat Hostiles . | . . . . Parts Fried . | . . . . Impact Corruptions . | . . . . Robots Melted . | . . . . Combat Hostiles . | . . . . Parts Melted . | . . . . Heat Transferred 1369 | . 851 407 111 Parts Sabotaged . | . . . . Parts Stolen . | . . . . Parts Stripped . | . . . . Power Chain Reactions . | . . . . Alert | -11 -10 -10 -9 ------- Run | Yrd Mat Min Mat Maximum Alert Level . | . . . . Low Security (%) 100 | 100 100 100 100 Level 1 . | . . . . Level 2 . | . . . . Level 3 . | . . . . Level 4 . | . . . . Level 5 . | . . . . High Security . | . . . . Max Security . | . . . . Peak Influence 112 | . 40 112 40 Initial 20 | . . 1 20 Average 21 | . 10 34 7 Influence Increases 524 | . 141 298 85 Destroy 0b10 Robot/C 340 | . 100 200 40 Destroy 0b10 Robot/NC 30 | . 20 . 10 Destroy Leader 62 | . 20 40 2 Disable Machine 15 | . . 15 . Destroy Structure 62 | . 1 28 33 Lose Combat Pursuer 15 | . . 15 . Influence Decreases 524 | . 137 250 137 Entered New Map 35 | . . 3 32 Time Decay 414 | . 127 237 50 Lost Part 75 | . 10 10 55 Squads Dispatched 2 | . 2 . . Investigation 1 | . 1 . . Extermination . | . . . . Reinforcement 1 | . 1 . . Assault . | . . . . Garrison . | . . . . Intercept . | . . . . Searches Triggered . | . . . . Construction Impeded . | . . . . Haulers Reinforced . | . . . . Active Scanning Responses . | . . . . Cargo Convoy Interrupts . | . . . . Stealth | -11 -10 -10 -9 --------- Run | Yrd Mat Min Mat Distress Signals 2 | . 1 . 1 Communications Jammed . | . . . . Distress Signals . | . . . . Times Spotted 28 | . 9 11 8 Peak Tracking Total 6 | . 4 3 6 Tactical Retreats 1 | . . 1 . Traps | -11 -10 -10 -9 ------- Run | Yrd Mat Min Mat Traps Triggered 2 | . 2 . . Indirectly . | . . . . Trap Hack Attempts . | . . . . Triggered . | . . . . Disarmed . | . . . . Reprogrammed . | . . . . Reused . | . . . . Traps Extracted . | . . . . Installed . | . . . . Triggered . | . . . . Machines | -11 -10 -10 -9 ---------- Run | Yrd Mat Min Mat Machines Disabled 1 | . . 1 . Max in Single Turn 1 | . . 1 . Machines Repaired . | . . . . Machines Dismantled . | . . . . Machines Sabotaged . | . . . . Overloaded Fab Kills . | . . . . Hacking | -11 -10 -10 -9 --------- Run | Yrd Mat Min Mat Machines Accessed . | . . . . Terminals . | . . . . Fabricators . | . . . . Repair Stations . | . . . . Recycling Units . | . . . . Scanalyzers . | . . . . Garrison Access . | . . . . Total Hacks . | . . . . Successful . | . . . . Failed . | . . . . Catastrophic . | . . . . Database Lockouts . | . . . . Manual . | . . . . Terminals . | . . . . Fabricators . | . . . . Repair Stations . | . . . . Recycling Units . | . . . . Scanalyzers . | . . . . Garrison Access . | . . . . Terminal Hacks . | . . . . Fabricator Hacks . | . . . . Repair Station Hacks . | . . . . Recycling Unit Hacks . | . . . . Scanalyzer . | . . . . Garrison Access Hacks . | . . . . Unauthorized Hacks . | . . . . Terminals . | . . . . Fabricators . | . . . . Repair Stations . | . . . . Recycling Units . | . . . . Scanalyzers . | . . . . Garrison Access . | . . . . Data Cores Recovered . | . . . . Used . | . . . . Hacking Detections . | . . . . Full Trace Events . | . . . . Feedback Events . | . . . . Feedback Blocked . | . . . . Robot Schematics Acquired . | . . . . Robots Built . | . . . . Authchips . | . . . . Time . | . . . . Total Robot Build Rating . | . . . . Part Schematics Acquired . | . . . . Parts Built . | . . . . Authchips . | . . . . Time . | . . . . Total Part Build Rating . | . . . . Parts Repaired . | . . . . Time . | . . . . Parts Recycled . | . . . . Recycled Matter . | . . . . Retrieved Matter . | . . . . Retrieved Components . | . . . . Parts Scanalyzed . | . . . . Part Schematics Acquired . | . . . . Parts Damaged . | . . . . Bothacking | -11 -10 -10 -9 ------------ Run | Yrd Mat Min Mat Used RIF Installer . | . . . . Robots Hacked . | . . . . Non-combat . | . . . . Combat . | . . . . Robot Hacks Applied . | . . . . Relay Couplers Released . | . . . . Fabnet Peak Effective % . | . . . . Robots Rewired . | . . . . Allies Hacked . | . . . . Hacks Repelled . | . . . . Allies | -11 -10 -10 -9 -------- Run | Yrd Mat Min Mat Total Allies . | . . . . Largest Group . | . . . . Highest-Rated Group . | . . . . Highest-Rated Ally . | . . . . Total Orders . | . . . . Ally Attacks . | . . . . Total Damage . | . . . . Kills . | . . . . Allies Corrupted . | . . . . Allies Melted . | . . . . Intel | -11 -10 -10 -9 ------- Run | Yrd Mat Min Mat Active Infowar (turns) 146 | . 146 . . Seismic 146 | . 146 . . Robot Analysis Total . | . . . . Derelict Logs Recovered 1 | . . 1 . Drone Launches . | . . . . Drone Recoveries . | . . . . Exploration | -11 -10 -10 -9 ------------- Run | Yrd Mat Min Mat Turns Passed 1664 | 86 579 831 168 Spaces Moved 996 | 94 454 420 28 Core 4 | 4 . . . Treads . | . . . . Legs . | . . . . Wheels 992 | 90 454 420 28 Hover . | . . . . Flight . | . . . . Fastest Speed 50 | 50 80 185 185 Average Speed 137 | 78 102 185 194 Slowest Speed 290 | 80 185 290 275 Overloaded Moves . | . . . . Propulsion Burnouts . | . . . . Robots Hopped . | . . . . Potential Cave-ins . | . . . . Cave-ins Triggered . | . . . . Exploration Rate (%) 34 | 4 59 70 6 Regions Visited 3 Branch Regions 1 Pre-discovered Areas . | . . . . Known Exits Taken . | . . . . Unknown Exits Taken 3 | 1 1 1 . Scrap Searched 1 | . . 1 . Spaces Dug . | . . . . Terrain Destroyed 83 | . . 39 44 Melee . | . . . . Projectile . | . . . . AOE 83 | . . 39 44 Terrain Rammed . | . . . . Walls Destroyed . | . . . . Machines Disabled . | . . . . Actions | -11 -10 -10 -9 --------- Run | Yrd Mat Min Mat Total 1124 | 102 513 445 64 Wait 13 | . 5 2 6 Move 993 | 93 453 419 28 Hop . | . . . . Pick Up 24 | 3 15 4 2 Fast Attach 10 | 6 4 . . Attach 8 | . . 1 7 Detach . | . . . . Swap 5 | . 3 2 . Drop 5 | . 5 . . Fire 58 | . 28 17 13 Melee . | . . . . Ram 1 | . . . 1 Kick . | . . . . Crush 7 | . . . 7 Escape Stasis . | . . . . Rewire . | . . . . Trap . | . . . . Miscellaneous . | . . . . Route ------- -11/Scrapyard -10/Materials (discovered 3 exits: [*Mat] / [*Min x2]) -10/Mines -9/Materials History --------- Turn | Location | Event 7 | -11/Scrapyard | Discovered new exit (range 15) 87 | -11/Scrapyard | Entered Materials 88 | -10/Materials | Met a group of wandering Federalists 242 | -10/Materials | Discovered new exit (range 13) 315 | -10/Materials | Build established: Mutant 320 | -10/Materials | Discovered new exit (range 8) 502 | -10/Materials | Discovered new exit (range 9) 666 | -10/Materials | Entered Mines 709 | -10/Mines | Build established: Hauler-Mutant 755 | -10/Mines | Received a Rocket Launcher from a helpful Derelict 1029 | -10/Mines | Found a Scrap Suit stashed away for nefarious purposes 1044 | -10/Mines | Found Scrap Suit 1226 | -10/Mines | Core integrity fell below 50% 1460 | -10/Mines | Discovered new exit (range 12) 1497 | -10/Mines | Entered Materials 1497 | -9/Materials | Evolved 2 slots: Utility x1, Weapon x1 1591 | -9/Materials | Core integrity fell below 50% 1651 | -9/Materials | Core integrity fell below 20% 1665 | -9/Materials | Destroyed by Y-45 Defender with Beam Rifle Last Messages --------------- 01628_ K-01 Serf collects debris. 01630_ U-05 Engineer lays Concrete. 01630_ Slammed into G-47 Trooper. 01632_ U-05 Engineer builds a Wall. 01637_ Slammed into G-47 Trooper. 01638_ Lgt. Treads destroyed. 01639_ K-01 Serf collects debris. 01640_ U-05 Engineer builds a Wall. 01640_ R-06 Scavenger suffers critical hit (Burn). 01640_ R-06 Scavenger destroyed. 01644_ W-16 Scout sends out distress signal. 01644_ R-06 Scavenger collects Com. Wheel. 01644_ U-05 Engineer builds a Wall. 01645_ Slammed into G-47 Trooper. 01646_ U-05 Engineer builds a Door. 01646_ R-06 Scavenger destroyed. 01649_ U-05 Engineer builds a Wall. 01650_ K-01 Serf collects debris. 01651_ U-05 Engineer lays Concrete. 01654_ K-01 Serf collects debris. Map ----- +----------------------------------------------------+ | ?????????????????????????????????????????????????? | | ?????????????????????????????????????????????????? | | ?????????????????????????????????????????????????? | | ?????????????????????????????????????????????????? | | ?????????????????????????????????????????????????? | | ?????????????????????????????????????????????????? | | ?????????????????????????????????????????????????? | | ?????????????????????????????????????????????????? | | ?????????????????????????????????????????????????? | | ?????????????????????????????????????????????????? | | ?????????????????????????????????????????????????? | | ?????????????????????????????????????????????????? | | ?????????????????????????????????????????????????? | | ?????????????????????????????????????????????????? | | ?????????????????????????????????????????????????? | | ?????????????????????????????????????????????????? | | ?????????????????????????????????????????????????? | | ???????????????????????????????????????? ????????? | | ??????????????????????????????????????? ??????? | | ????????????????????????????????????? ??????? | | ???????????????????????????????????? ?????? | | ????????????????????????????????###[ ?????? | | ???????????###+################# #####+# # ! ????? | | ????????? =% ????? | | ????????? Y !%= g ????? | | ????????? w % @ = % % %!%[ ????? | | ???????????###+#############+## [ k #?????? | | ????????????????????????# !% # ## #?????? | | ????????????????????????# /[ # #??? ####?????? | | ????????????????????????# / # ######T#####??? | | ????????????????????????# / # #??? | | ????????????????????????# # #??? | | ????????????????????????# + #??? | | ????????????????????????#######################??? | | ?????????????????????????????????????????????????? | | ?????????????????????????????????????????????????? | | ?????????????????????????????????????????????????? | | ?????????????????????????????????????????????????? | | ?????????????????????????????????????????????????? | | | | | | | | | | | | | | | | | | | | | | | +----------------------------------------------------+ Best States ------------- Heat Dissipation 39 Energy Generation 10 Energy Capacity 250 Matter Stores 300 Matter Capacity 300 Sight Range 16 Terrain Scan Density 10 Weapon Shielding 33 Evasion (%) 44 Recoil Reduction 1 Item Schematics ----------------- None Robot Schematics ------------------ None Fabricated ------------ Nothing Repaired ---------- Nothing Alien Tech Used ----------------- None Achievements -------------- None Challenges ------------ None Game ------ Seed CloakingSpectralExtractor Manual? 0 Play Time 00:09:35 Cumulative 27.8 hours Start 2025.10.09 @ 16:55:36 End 2025.10.09 @ 17:03:24 Sessions 1 Manual Loads 0 Difficulty Rogue Special Mode None Game No. 73 Rogue 66 Adventurer 7 Explorer 0 Win Type - Total 0 Types 0/0/0/0/0/0/0/0/0/0 Lore% 5 Gallery% 26 Achievement% 26 Wizard Run 0 Options --------- Layout 0 ASCII 0 Keyboard 1 Movement Vi Keybinds 0 Fullscreen 1 Font 18/SmallcapsGlow Map View 112x50 Zoom Use 0% Tactical HUD 1 Map Filters NONE Filters NONE Steam X RUN: dc04b6c1-786e-46bb-b297-3e94bd71042e